[Event "Early-Titled-Tuesday-Blitz-October-24-2023"]
[Site "Chess.com"]
[Date "2023.10.24"]
[Round "11"]
[White "kingapolak"]
[Black "ural58"]
[Result "0-1"]
[WhiteElo "2156"]
[BlackElo "2495"]
[TimeControl "180+1"]
[EndTime "10:03:50 PDT"]
[Termination "ural58 won on time"]

1. e4 {[%clk 0:02:43.4]} 1... d5 {[%clk 0:02:46.1]} 2. exd5 {[%clk 0:02:42.5]}
2... Qxd5 {[%clk 0:02:42.8]} 3. Nc3 {[%clk 0:02:39.5]} 3... Qd6 {[%clk
0:02:40.4]} 4. d4 {[%clk 0:02:35.4]} 4... c6 {[%clk 0:02:35.4]} 5. Nf3 {[%clk
0:02:21.2]} 5... Bf5 {[%clk 0:02:34]} 6. g3 {[%clk 0:02:20.2]} 6... e6 {[%clk
0:02:32.9]} 7. Bf4 {[%clk 0:02:17.9]} 7... Qb4 {[%clk 0:02:31.8]} 8. Rb1 {[%clk
0:02:00.6]} 8... Nd7 {[%clk 0:02:25.4]} 9. Bg2 {[%clk 0:01:59.3]} 9... Ngf6
{[%clk 0:02:24.8]} 10. O-O {[%clk 0:01:57.7]} 10... Be7 {[%clk 0:02:24.2]} 11.
a3 {[%clk 0:01:53.8]} 11... Qa5 {[%clk 0:02:22.4]} 12. Ne5 {[%clk 0:01:35]}
12... Nxe5 {[%clk 0:02:18.7]} 13. Bxe5 {[%clk 0:01:33.6]} 13... O-O {[%clk
0:02:16.6]} 14. Qe2 {[%clk 0:01:29.3]} 14... Rfd8 {[%clk 0:02:00.5]} 15. Ne4
{[%clk 0:01:14.5]} 15... Nxe4 {[%clk 0:01:59.1]} 16. Bxe4 {[%clk 0:01:14]} 16...
Bxe4 {[%clk 0:01:59.2]} 17. Qxe4 {[%clk 0:01:13.4]} 17... f6 {[%clk 0:01:50]}
18. Bf4 {[%clk 0:01:13.2]} 18... Qd5 {[%clk 0:01:50]} 19. Rfe1 {[%clk
0:01:10.5]} 19... Qxe4 {[%clk 0:01:47.6]} 20. Rxe4 {[%clk 0:01:11.2]} 20... Bf8
{[%clk 0:01:40.5]} 21. c3 {[%clk 0:01:07.2]} 21... Kf7 {[%clk 0:01:40.5]} 22.
Rbe1 {[%clk 0:01:06.4]} 22... Re8 {[%clk 0:01:40.8]} 23. Kg2 {[%clk 0:01:01.8]}
23... Rad8 {[%clk 0:01:40.7]} 24. h4 {[%clk 0:01:01.4]} 24... h5 {[%clk
0:01:40.6]} 25. b4 {[%clk 0:00:57.1]} 25... b5 {[%clk 0:01:32.2]} 26. Ra1 {[%clk
0:00:54.4]} 26... a6 {[%clk 0:01:31.7]} 27. a4 {[%clk 0:00:53.7]} 27... Ra8
{[%clk 0:01:26.6]} 28. Re2 {[%clk 0:00:45.7]} 28... Be7 {[%clk 0:01:20]} 29.
Rea2 {[%clk 0:00:45.1]} 29... Rac8 {[%clk 0:01:10.7]} 30. axb5 {[%clk
0:00:41.9]} 30... axb5 {[%clk 0:01:10.8]} 31. Ra7 {[%clk 0:00:40.7]} 31... Kg6
{[%clk 0:01:07.3]} 32. Rb7 {[%clk 0:00:35.4]} 32... Bf8 {[%clk 0:01:05.5]} 33.
Raa7 {[%clk 0:00:34.8]} 33... e5 {[%clk 0:01:04.1]} 34. dxe5 {[%clk 0:00:33.9]}
34... fxe5 {[%clk 0:01:04.7]} 35. Be3 {[%clk 0:00:34.5]} 35... Re6 {[%clk
0:01:03]} 36. Kf3 {[%clk 0:00:28.5]} 36... e4+ {[%clk 0:01:02]} 37. Ke2 {[%clk
0:00:27]} 37... Kh7 {[%clk 0:00:47.1]} 38. Bd4 {[%clk 0:00:25.6]} 38... Rg6
{[%clk 0:00:47]} 39. Ke3 {[%clk 0:00:25.9]} 39... Re8 {[%clk 0:00:46.8]} 40. Rf7
{[%clk 0:00:21.8]} 40... Kg8 {[%clk 0:00:43.7]} 41. Rf4 {[%clk 0:00:16.7]} 41...
Rge6 {[%clk 0:00:43.8]} 42. Rff7 {[%clk 0:00:16.3]} 42... Rg6 {[%clk 0:00:41.7]}
43. Kf4 {[%clk 0:00:14.8]} 43... e3 {[%clk 0:00:32.7]} 44. Bxe3 {[%clk
0:00:14.2]} 44... Bd6+ {[%clk 0:00:19.8]} 45. Kf3 {[%clk 0:00:14.1]} 45... Be5
{[%clk 0:00:19.8]} 46. Bd4 {[%clk 0:00:11.6]} 46... Bxd4 {[%clk 0:00:19.8]} 47.
cxd4 {[%clk 0:00:12.5]} 47... Rd8 {[%clk 0:00:18.2]} 48. Ke3 {[%clk 0:00:11.9]}
48... Rg4 {[%clk 0:00:18.3]} 49. Rad7 {[%clk 0:00:09.7]} 49... Ra8 {[%clk
0:00:17.5]} 50. Rfe7 {[%clk 0:00:04.7]} 50... Ra3+ {[%clk 0:00:17.3]} 51. Ke2
{[%clk 0:00:04.2]} 51... Ra2+ {[%clk 0:00:17]} 52. Kf1 {[%clk 0:00:04.4]} 52...
Rd2 {[%clk 0:00:17.1]} 53. Kg2 {[%clk 0:00:03.3]} 53... Rdxd4 {[%clk 0:00:15.9]}
54. Rc7 {[%clk 0:00:01.9]} 54... Rc4 {[%clk 0:00:14.9]} 0-1

[Event "Early-Titled-Tuesday-Blitz-October-24-2023"]
[Site "Chess.com"]
[Date "2023.10.24"]
[Round "11"]
[White "motivated_bishop"]
[Black "Artemiki"]
[Result "0-1"]
[WhiteElo "2517"]
[BlackElo "2382"]
[TimeControl "180+1"]
[EndTime "10:03:52 PDT"]
[Termination "Artemiki won by checkmate"]

1. d4 {[%clk 0:02:39.5]} 1... Nf6 {[%clk 0:02:59.3]} 2. c4 {[%clk 0:02:39.9]}
2... c5 {[%clk 0:02:58.7]} 3. d5 {[%clk 0:02:39.7]} 3... e6 {[%clk 0:02:58.8]}
4. Nc3 {[%clk 0:02:39.6]} 4... exd5 {[%clk 0:02:58.5]} 5. cxd5 {[%clk
0:02:40.5]} 5... d6 {[%clk 0:02:58.9]} 6. Nf3 {[%clk 0:02:40.5]} 6... g6 {[%clk
0:02:59.3]} 7. Bf4 {[%clk 0:02:40.8]} 7... a6 {[%clk 0:02:58.1]} 8. a4 {[%clk
0:02:40.3]} 8... Bg7 {[%clk 0:02:57.3]} 9. h3 {[%clk 0:02:40.7]} 9... O-O {[%clk
0:02:55]} 10. e4 {[%clk 0:02:38.6]} 10... Re8 {[%clk 0:02:54.4]} 11. Nd2 {[%clk
0:02:38.3]} 11... Nxe4 {[%clk 0:02:37.3]} 12. Ncxe4 {[%clk 0:02:37.2]} 12... f5
{[%clk 0:02:37]} 13. f3 {[%clk 0:02:36.3]} 13... fxe4 {[%clk 0:02:29.3]} 14.
Nxe4 {[%clk 0:02:36.6]} 14... Bf5 {[%clk 0:02:13.8]} 15. Bd3 {[%clk 0:02:36.6]}
15... Bd4 {[%clk 0:01:54.3]} 16. g4 {[%clk 0:02:32.5]} 16... Qh4+ {[%clk
0:01:47.4]} 17. Kd2 {[%clk 0:02:30.4]} 17... Bxe4 {[%clk 0:01:42.5]} 18. Bxe4
{[%clk 0:02:30.6]} 18... Rxe4 {[%clk 0:01:28.3]} 19. fxe4 {[%clk 0:02:22]} 19...
Qf2+ {[%clk 0:01:28.2]} 20. Kd3 {[%clk 0:02:19.7]} 20... Qxf4 {[%clk 0:01:22]}
21. Qe2 {[%clk 0:02:09.9]} 21... Nd7 {[%clk 0:01:18.7]} 22. Raf1 {[%clk
0:02:09]} 22... Qe5 {[%clk 0:01:14.3]} 23. h4 {[%clk 0:02:02.9]} 23... Bxb2
{[%clk 0:01:10.9]} 24. Kc2 {[%clk 0:02:02.4]} 24... Nb6 {[%clk 0:00:53.3]} 25.
Rf3 {[%clk 0:02:00.8]} 25... Nxa4 {[%clk 0:00:37.1]} 26. h5 {[%clk 0:02:01.2]}
26... g5 {[%clk 0:00:25]} 27. Rf5 {[%clk 0:02:00.7]} 27... Qc3+ {[%clk
0:00:21.5]} 28. Kb1 {[%clk 0:02:01.1]} 28... Qb3 {[%clk 0:00:20.2]} 29. Rxg5+
{[%clk 0:01:56.4]} 29... Kh8 {[%clk 0:00:20]} 30. Rh3 {[%clk 0:01:32.5]} 30...
Qxh3 {[%clk 0:00:13.4]} 31. Qf2 {[%clk 0:01:29.3]} 31... Qd3+ {[%clk 0:00:11.8]}
32. Ka2 {[%clk 0:01:29.1]} 32... Qa3+ {[%clk 0:00:10.5]} 33. Kb1 {[%clk
0:01:29.3]} 33... Qa1+ {[%clk 0:00:10.2]} 34. Kc2 {[%clk 0:01:29.9]} 34... Qc1+
{[%clk 0:00:10.8]} 35. Kb3 {[%clk 0:01:30.4]} 35... Qd1+ {[%clk 0:00:06.7]} 36.
Ka2 {[%clk 0:01:29.6]} 36... Nc3+ {[%clk 0:00:03.8]} 37. Kxb2 {[%clk 0:01:29.9]}
37... Qd4 {[%clk 0:00:03]} 38. Qxd4+ {[%clk 0:01:10.5]} 38... cxd4 {[%clk
0:00:03.9]} 39. e5 {[%clk 0:01:11.4]} 39... dxe5 {[%clk 0:00:02.2]} 40. d6
{[%clk 0:01:12.1]} 40... Rd8 {[%clk 0:00:02.6]} 41. h6 {[%clk 0:01:10.3]} 41...
Rxd6 {[%clk 0:00:03.1]} 42. Rxe5 {[%clk 0:01:10.9]} 42... Rxh6 {[%clk
0:00:03.3]} 43. Re8+ {[%clk 0:01:11.4]} 43... Kg7 {[%clk 0:00:03.7]} 44. Re7+
{[%clk 0:01:12.3]} 44... Kf6 {[%clk 0:00:03.5]} 45. Rxb7 {[%clk 0:01:13.2]}
45... Kg5 {[%clk 0:00:03.5]} 46. Rg7+ {[%clk 0:01:13.3]} 46... Kh4 {[%clk
0:00:03.2]} 47. g5 {[%clk 0:01:13.9]} 47... Rb6+ {[%clk 0:00:03.4]} 48. Kc2
{[%clk 0:01:13.2]} 48... Kh5 {[%clk 0:00:03.4]} 49. Rxh7+ {[%clk 0:01:12.9]}
49... Kxg5 {[%clk 0:00:03.9]} 50. Rd7 {[%clk 0:01:13.7]} 50... Nb5 {[%clk
0:00:02.5]} 51. Kd3 {[%clk 0:01:14.1]} 51... Kf6 {[%clk 0:00:02.8]} 52. Rd5
{[%clk 0:01:14.3]} 52... Ke6 {[%clk 0:00:03]} 53. Rh5 {[%clk 0:01:14.6]} 53...
Rc6 {[%clk 0:00:03.7]} 54. Rh6+ {[%clk 0:01:14.9]} 54... Kd7 {[%clk 0:00:04.3]}
55. Rh7+ {[%clk 0:01:15.2]} 55... Kd6 {[%clk 0:00:04.9]} 56. Rh6+ {[%clk
0:01:15.6]} 56... Kc7 {[%clk 0:00:05.6]} 57. Rh8 {[%clk 0:01:15.7]} 57... Kb6
{[%clk 0:00:06.1]} 58. Rh1 {[%clk 0:01:15.4]} 58... Rc3+ {[%clk 0:00:05.6]} 59.
Ke4 {[%clk 0:01:16]} 59... Re3+ {[%clk 0:00:05.2]} 60. Kd5 {[%clk 0:01:16.9]}
60... Re8 {[%clk 0:00:05]} 61. Rh6+ {[%clk 0:01:16.3]} 61... Ka5 {[%clk
0:00:04.7]} 62. Kc4 {[%clk 0:01:15.8]} 62... Rc8+ {[%clk 0:00:04.4]} 63. Kd3
{[%clk 0:01:15.6]} 63... Rc3+ {[%clk 0:00:04.5]} 64. Kd2 {[%clk 0:01:16.1]}
64... Rg3 {[%clk 0:00:03.9]} 65. Rf6 {[%clk 0:01:14.4]} 65... d3 {[%clk
0:00:04]} 66. Rf4 {[%clk 0:01:13.1]} 66... Kb6 {[%clk 0:00:03]} 67. Rf6+ {[%clk
0:01:13.1]} 67... Kb7 {[%clk 0:00:02.8]} 68. Rf7+ {[%clk 0:01:13.2]} 68... Kb6
{[%clk 0:00:02.7]} 69. Rf6+ {[%clk 0:01:13.8]} 69... Ka5 {[%clk 0:00:03.5]} 70.
Rf4 {[%clk 0:01:14.4]} 70... Na3 {[%clk 0:00:02.3]} 71. Rd4 {[%clk 0:01:12.5]}
71... Nb5 {[%clk 0:00:02.1]} 72. Rc4 {[%clk 0:01:11.2]} 72... Rf3 {[%clk
0:00:02.3]} 73. Re4 {[%clk 0:01:10.5]} 73... Na3 {[%clk 0:00:02.2]} 74. Rd4
{[%clk 0:01:10.2]} 74... Kb5 {[%clk 0:00:02.8]} 75. Rd5+ {[%clk 0:01:08.9]}
75... Kb4 {[%clk 0:00:03.1]} 76. Rd6 {[%clk 0:01:09.3]} 76... Nc4+ {[%clk
0:00:03.6]} 77. Kd1 {[%clk 0:01:08.6]} 77... Nxd6 {[%clk 0:00:04.5]} 78. Ke1
{[%clk 0:01:09.1]} 78... a5 {[%clk 0:00:04.6]} 79. Kd2 {[%clk 0:01:09.6]} 79...
a4 {[%clk 0:00:05.1]} 80. Kc1 {[%clk 0:01:10.3]} 80... Rf2 {[%clk 0:00:04.9]}
81. Kb1 {[%clk 0:01:11.2]} 81... a3 {[%clk 0:00:05.5]} 82. Ka1 {[%clk
0:01:11.5]} 82... Nc4 {[%clk 0:00:06]} 83. Kb1 {[%clk 0:01:11.3]} 83... Kb3
{[%clk 0:00:06.2]} 84. Kc1 {[%clk 0:01:11.7]} 84... Rf1# {[%clk 0:00:07.1]} 0-1

[Event "Early-Titled-Tuesday-Blitz-October-24-2023"]
[Site "Chess.com"]
[Date "2023.10.24"]
[Round "11"]
[White "shimastream"]
[Black "alexrustemov"]
[Result "1-0"]
[WhiteElo "2975"]
[BlackElo "2776"]
[TimeControl "180+1"]
[EndTime "10:03:58 PDT"]
[Termination "shimastream won by resignation"]

1. Nf3 {[%clk 0:03:00.9]} 1... d5 {[%clk 0:02:59.6]} 2. c4 {[%clk 0:03:00.8]}
2... c6 {[%clk 0:02:59.1]} 3. g3 {[%clk 0:03:00.2]} 3... Nf6 {[%clk 0:02:59.2]}
4. Bg2 {[%clk 0:03:00]} 4... e6 {[%clk 0:02:49.1]} 5. b3 {[%clk 0:02:57.9]} 5...
Be7 {[%clk 0:02:49.2]} 6. O-O {[%clk 0:02:58.2]} 6... O-O {[%clk 0:02:49.8]} 7.
Bb2 {[%clk 0:02:58.8]} 7... Nbd7 {[%clk 0:02:49.8]} 8. d3 {[%clk 0:02:58.6]}
8... b6 {[%clk 0:02:49.6]} 9. Nbd2 {[%clk 0:02:58.5]} 9... Bb7 {[%clk
0:02:49.6]} 10. e4 {[%clk 0:02:57.9]} 10... c5 {[%clk 0:02:35.4]} 11. cxd5
{[%clk 0:02:56.8]} 11... exd5 {[%clk 0:02:35.4]} 12. e5 {[%clk 0:02:57.7]} 12...
Ne8 {[%clk 0:02:35.3]} 13. d4 {[%clk 0:02:57.4]} 13... Nc7 {[%clk 0:02:35.1]}
14. h4 {[%clk 0:02:55.5]} 14... Ne6 {[%clk 0:02:34.5]} 15. Re1 {[%clk
0:02:56.2]} 15... Rc8 {[%clk 0:02:33.6]} 16. Nf1 {[%clk 0:02:56.4]} 16... c4
{[%clk 0:02:32.1]} 17. Ne3 {[%clk 0:02:55.9]} 17... b5 {[%clk 0:02:30.2]} 18.
Nh2 {[%clk 0:02:43.4]} 18... Nb6 {[%clk 0:02:17.4]} 19. h5 {[%clk 0:02:30.2]}
19... h6 {[%clk 0:02:16.7]} 20. Nf5 {[%clk 0:02:28.2]} 20... Re8 {[%clk
0:02:07.8]} 21. Qg4 {[%clk 0:02:26.7]} 21... Kh8 {[%clk 0:02:06.1]} 22. Nf1
{[%clk 0:02:08.1]} 22... Bf8 {[%clk 0:02:05.7]} 23. N1e3 {[%clk 0:02:08.2]}
23... b4 {[%clk 0:02:05.8]} 24. bxc4 {[%clk 0:01:47.5]} 24... Nxc4 {[%clk
0:02:05.5]} 25. Nxc4 {[%clk 0:01:47.8]} 25... Rxc4 {[%clk 0:02:06.2]} 26. Bf1
{[%clk 0:01:47.9]} 26... a5 {[%clk 0:02:01.8]} 27. Bd3 {[%clk 0:01:47.5]} 27...
Qg5 {[%clk 0:01:56.9]} 28. Qf3 {[%clk 0:01:44.4]} 28... Qd2 {[%clk 0:01:48.2]}
29. Re2 {[%clk 0:01:42.2]} 29... Ng5 {[%clk 0:01:41.3]} 30. Qe3 {[%clk
0:01:32.6]} 30... Qxe3 {[%clk 0:01:40.2]} 31. Nxe3 {[%clk 0:01:33.5]} 31... Rc7
{[%clk 0:01:38.5]} 32. f4 {[%clk 0:01:32.2]} 32... Ne4 {[%clk 0:01:36.6]} 33.
Bxe4 {[%clk 0:01:32.2]} 33... dxe4 {[%clk 0:01:36.9]} 34. d5 {[%clk 0:01:33.1]}
34... Bc5 {[%clk 0:01:29.8]} 35. d6 {[%clk 0:01:32.6]} 35... Rc6 {[%clk
0:01:21.7]} 36. Rc1 {[%clk 0:01:28]} 36... Rec8 {[%clk 0:01:18]} 37. Kf2 {[%clk
0:01:07.1]} 37... Bb6 {[%clk 0:01:17.8]} 38. Rxc6 {[%clk 0:01:05.2]} 38... Rxc6
{[%clk 0:01:18.2]} 39. Rd2 {[%clk 0:01:05.8]} 39... Bc8 {[%clk 0:01:14.9]} 40.
Bd4 {[%clk 0:01:04.5]} 40... Bd7 {[%clk 0:01:06.7]} 41. Bxb6 {[%clk 0:01:03.8]}
41... Rxb6 {[%clk 0:01:07.2]} 42. Rc2 {[%clk 0:01:03.9]} 42... a4 {[%clk
0:00:57.2]} 43. Nd1 {[%clk 0:00:36.4]} 43... Be6 {[%clk 0:00:47.5]} 44. Ke3
{[%clk 0:00:33.8]} 44... a3 {[%clk 0:00:47.1]} 45. Kxe4 {[%clk 0:00:31.1]} 45...
g6 {[%clk 0:00:46.2]} 46. hxg6 {[%clk 0:00:29.1]} 46... fxg6 {[%clk 0:00:46.4]}
47. Ne3 {[%clk 0:00:28.3]} 47... b3 {[%clk 0:00:39.6]} 48. axb3 {[%clk
0:00:29.2]} 48... Rb4+ {[%clk 0:00:39.7]} 49. Kd3 {[%clk 0:00:23.7]} 49... Rxb3+
{[%clk 0:00:39.7]} 50. Kd2 {[%clk 0:00:17.3]} 50... Rb1 {[%clk 0:00:35.1]} 51.
Nd5 {[%clk 0:00:13.1]} 51... Kg7 {[%clk 0:00:31]} 52. Rc7+ {[%clk 0:00:12.4]}
52... Kf8 {[%clk 0:00:31.1]} 53. Nc3 {[%clk 0:00:11.3]} 53... a2 {[%clk
0:00:29.8]} 54. Nxa2 {[%clk 0:00:11]} 54... Bxa2 {[%clk 0:00:29.6]} 55. Rc8+
{[%clk 0:00:10.4]} 55... Kf7 {[%clk 0:00:28.8]} 56. d7 {[%clk 0:00:11.1]} 56...
Bb3 {[%clk 0:00:12.9]} 57. d8=Q {[%clk 0:00:09]} 57... Rd1+ {[%clk 0:00:13.3]}
58. Ke3 {[%clk 0:00:09.7]} 58... Rxd8 {[%clk 0:00:13.8]} 59. Rxd8 {[%clk
0:00:10.6]} 59... h5 {[%clk 0:00:13.1]} 60. Rd6 {[%clk 0:00:11.5]} 1-0

[Event "Early-Titled-Tuesday-Blitz-October-24-2023"]
[Site "Chess.com"]
[Date "2023.10.24"]
[Round "11"]
[White "twitchTriniCupid"]
[Black "Fan_Of_Chucky"]
[Result "0-1"]
[WhiteElo "2345"]
[BlackElo "2528"]
[TimeControl "180+1"]
[EndTime "10:04:09 PDT"]
[Termination "Fan_Of_Chucky won by checkmate"]

1. Nf3 {[%clk 0:03:00.9]} 1... c5 {[%clk 0:02:50.2]} 2. b3 {[%clk 0:02:59]} 2...
Nf6 {[%clk 0:02:49]} 3. Bb2 {[%clk 0:02:58.7]} 3... e6 {[%clk 0:02:48.1]} 4. e3
{[%clk 0:02:58.8]} 4... d5 {[%clk 0:02:47.7]} 5. Bb5+ {[%clk 0:02:52.4]} 5...
Bd7 {[%clk 0:02:46.3]} 6. a4 {[%clk 0:02:51.9]} 6... Be7 {[%clk 0:02:45.6]} 7.
Ne5 {[%clk 0:02:51]} 7... O-O {[%clk 0:02:40.2]} 8. O-O {[%clk 0:02:50.1]} 8...
a6 {[%clk 0:02:39.7]} 9. Be2 {[%clk 0:02:49.4]} 9... Nc6 {[%clk 0:02:39.1]} 10.
f4 {[%clk 0:02:48.5]} 10... d4 {[%clk 0:02:26]} 11. Bf3 {[%clk 0:02:42.6]} 11...
Qc7 {[%clk 0:02:16]} 12. Nxd7 {[%clk 0:02:28.7]} 12... Qxd7 {[%clk 0:01:58.9]}
13. Bxc6 {[%clk 0:02:17.5]} 13... Qxc6 {[%clk 0:01:59.8]} 14. exd4 {[%clk
0:02:16.9]} 14... cxd4 {[%clk 0:01:58.5]} 15. Bxd4 {[%clk 0:02:15.3]} 15... Rfd8
{[%clk 0:01:58.6]} 16. Be3 {[%clk 0:02:14.9]} 16... Nd5 {[%clk 0:01:54.6]} 17.
Qf3 {[%clk 0:02:06.2]} 17... Qxc2 {[%clk 0:01:41.9]} 18. Na3 {[%clk 0:01:47.7]}
18... Qd3 {[%clk 0:01:37.8]} 19. Nc4 {[%clk 0:01:46.3]} 19... Qxb3 {[%clk
0:01:33.1]} 20. Ne5 {[%clk 0:01:43.1]} 20... Nxe3 {[%clk 0:01:33.5]} 21. dxe3
{[%clk 0:01:43]} 21... Bc5 {[%clk 0:01:31.4]} 22. Rfe1 {[%clk 0:01:37.8]} 22...
Rac8 {[%clk 0:01:24.4]} 23. Rab1 {[%clk 0:01:34.2]} 23... Qxa4 {[%clk
0:01:20.9]} 24. Qxb7 {[%clk 0:01:33.1]} 24... f6 {[%clk 0:01:16]} 25. Qf7+
{[%clk 0:01:13.3]} 25... Kh8 {[%clk 0:01:15.1]} 26. Ng4 {[%clk 0:00:58.1]} 26...
Qxf4 {[%clk 0:01:02.7]} 27. Qxe6 {[%clk 0:00:38.3]} 27... Re8 {[%clk 0:00:57]}
28. Qd7 {[%clk 0:00:37.7]} 28... Rcd8 {[%clk 0:00:52.7]} 29. Qc6 {[%clk
0:00:32.7]} 29... Qxg4 {[%clk 0:00:43.4]} 30. Qxc5 {[%clk 0:00:32.1]} 30... Rd2
{[%clk 0:00:43.9]} 31. Qc6 {[%clk 0:00:29.2]} 31... Rc8 {[%clk 0:00:41.2]} 32.
Qb7 {[%clk 0:00:26.8]} 32... Rcc2 {[%clk 0:00:36.9]} 33. Qa8+ {[%clk 0:00:20]}
33... Rc8 {[%clk 0:00:37.1]} 34. Rb8 {[%clk 0:00:18.9]} 34... Qxg2+ {[%clk
0:00:31.2]} 35. Qxg2 {[%clk 0:00:17.8]} 35... Rxg2+ {[%clk 0:00:32.1]} 36. Kxg2
{[%clk 0:00:17.1]} 36... Rxb8 {[%clk 0:00:32.7]} 37. Kf3 {[%clk 0:00:16]} 37...
Kg8 {[%clk 0:00:28.4]} 38. Ke4 {[%clk 0:00:16]} 38... Rb5 {[%clk 0:00:27.4]} 39.
Kd4 {[%clk 0:00:16]} 39... a5 {[%clk 0:00:27.2]} 40. Kc4 {[%clk 0:00:16.3]}
40... Re5 {[%clk 0:00:27.4]} 41. Kd4 {[%clk 0:00:15.7]} 41... g5 {[%clk
0:00:24.9]} 42. e4 {[%clk 0:00:15.5]} 42... Kf7 {[%clk 0:00:24.8]} 43. Rc1
{[%clk 0:00:15.5]} 43... Kg6 {[%clk 0:00:25.2]} 44. Rc8 {[%clk 0:00:15.1]} 44...
Rb5 {[%clk 0:00:21.9]} 45. Rg8+ {[%clk 0:00:12.9]} 45... Kf7 {[%clk 0:00:21.7]}
46. Rh8 {[%clk 0:00:13]} 46... Kg7 {[%clk 0:00:21.8]} 47. Ra8 {[%clk 0:00:12.6]}
47... Rb2 {[%clk 0:00:19.4]} 48. h3 {[%clk 0:00:12.3]} 48... Rb3 {[%clk
0:00:18.4]} 49. h4 {[%clk 0:00:12]} 49... Rb4+ {[%clk 0:00:15.6]} 50. Ke3 {[%clk
0:00:10.4]} 50... h6 {[%clk 0:00:07.3]} 51. h5 {[%clk 0:00:09.2]} 51... Ra4
{[%clk 0:00:05.9]} 52. Ra7+ {[%clk 0:00:08.2]} 52... Kg8 {[%clk 0:00:05.4]} 53.
Kf3 {[%clk 0:00:07.5]} 53... Kf8 {[%clk 0:00:03.4]} 54. Rb7 {[%clk 0:00:05.1]}
54... Kg8 {[%clk 0:00:03.6]} 55. Ra7 {[%clk 0:00:04.7]} 55... Ra1 {[%clk
0:00:03.5]} 56. Kg4 {[%clk 0:00:04.9]} 56... Rf1 {[%clk 0:00:03.3]} 57. Kg3
{[%clk 0:00:03.6]} 57... Rf4 {[%clk 0:00:03.2]} 58. Rxa5 {[%clk 0:00:03.6]}
58... Rxe4 {[%clk 0:00:03.5]} 59. Kf3 {[%clk 0:00:04.1]} 59... Rf4+ {[%clk
0:00:03.3]} 60. Ke3 {[%clk 0:00:04.5]} 60... Kf7 {[%clk 0:00:04.2]} 61. Ra6
{[%clk 0:00:04.7]} 61... Rf5 {[%clk 0:00:03.7]} 62. Ke4 {[%clk 0:00:04.5]} 62...
Re5+ {[%clk 0:00:04.2]} 63. Kf3 {[%clk 0:00:05.4]} 63... Re6 {[%clk 0:00:04]}
64. Ra7+ {[%clk 0:00:05.2]} 64... Re7 {[%clk 0:00:04.6]} 65. Ra6 {[%clk
0:00:05.4]} 65... Rc7 {[%clk 0:00:04.2]} 66. Ke4 {[%clk 0:00:05.6]} 66... Rc4+
{[%clk 0:00:03.9]} 67. Kf5 {[%clk 0:00:06]} 67... Rf4# {[%clk 0:00:04]} 0-1

[Event "Early-Titled-Tuesday-Blitz-October-24-2023"]
[Site "Chess.com"]
[Date "2023.10.24"]
[Round "11"]
[White "Elsa167"]
[Black "GHANDEEVAM2003"]
[Result "1-0"]
[WhiteElo "2895"]
[BlackElo "3032"]
[TimeControl "180+1"]
[EndTime "10:04:11 PDT"]
[Termination "Elsa167 won by resignation"]

1. d4 {[%clk 0:03:00.9]} 1... Nf6 {[%clk 0:02:58.6]} 2. c4 {[%clk 0:03:01.2]}
2... d6 {[%clk 0:02:58]} 3. Nc3 {[%clk 0:03:01.2]} 3... Bf5 {[%clk 0:02:57.3]}
4. g3 {[%clk 0:02:57.2]} 4... Nc6 {[%clk 0:02:53.8]} 5. Bg2 {[%clk 0:02:56.6]}
5... e5 {[%clk 0:02:52.8]} 6. d5 {[%clk 0:02:50.7]} 6... Nd4 {[%clk 0:02:51.6]}
7. e4 {[%clk 0:02:50.8]} 7... Bg6 {[%clk 0:02:43.6]} 8. Be3 {[%clk 0:02:42.4]}
8... c5 {[%clk 0:02:33.4]} 9. dxc6 {[%clk 0:02:42.7]} 9... Nxc6 {[%clk
0:02:33.9]} 10. Nge2 {[%clk 0:02:34.6]} 10... h5 {[%clk 0:02:25.5]} 11. h3
{[%clk 0:02:32.2]} 11... Be7 {[%clk 0:02:22.5]} 12. Qd2 {[%clk 0:02:28.8]} 12...
h4 {[%clk 0:02:18.2]} 13. g4 {[%clk 0:02:29.2]} 13... Nh7 {[%clk 0:02:18.9]} 14.
O-O {[%clk 0:02:14.7]} 14... a6 {[%clk 0:02:07.8]} 15. Rad1 {[%clk 0:02:13.7]}
15... Rc8 {[%clk 0:02:05.5]} 16. b3 {[%clk 0:02:05.1]} 16... O-O {[%clk
0:02:02.2]} 17. f4 {[%clk 0:01:34.1]} 17... exf4 {[%clk 0:02:03.1]} 18. Nxf4
{[%clk 0:01:34.4]} 18... Ne5 {[%clk 0:01:57.5]} 19. Ncd5 {[%clk 0:01:31.6]}
19... Bg5 {[%clk 0:01:50.3]} 20. Qf2 {[%clk 0:01:17.6]} 20... f6 {[%clk
0:01:43.1]} 21. Ne6 {[%clk 0:01:16]} 21... Qd7 {[%clk 0:01:37.8]} 22. Nxg5
{[%clk 0:01:08.2]} 22... Nxg5 {[%clk 0:00:59]} 23. Nb6 {[%clk 0:01:04.5]} 23...
Qe6 {[%clk 0:00:56]} 24. Nxc8 {[%clk 0:01:02.7]} 24... Rxc8 {[%clk 0:00:56.9]}
25. Bxg5 {[%clk 0:00:58.2]} 25... fxg5 {[%clk 0:00:57.8]} 26. Qd2 {[%clk
0:00:53.2]} 26... Nf7 {[%clk 0:00:55.6]} 27. Qd5 {[%clk 0:00:51.6]} 27... Qxd5
{[%clk 0:00:52.4]} 28. Rxd5 {[%clk 0:00:47]} 28... Re8 {[%clk 0:00:48.8]} 29.
Rd4 {[%clk 0:00:46.3]} 29... Re5 {[%clk 0:00:46.3]} 30. Rfd1 {[%clk 0:00:43.6]}
30... Kf8 {[%clk 0:00:45.5]} 31. Kf2 {[%clk 0:00:44.1]} 31... Ke7 {[%clk
0:00:45]} 32. Ke3 {[%clk 0:00:44.7]} 32... b6 {[%clk 0:00:41.8]} 33. b4 {[%clk
0:00:42.8]} 33... Kd7 {[%clk 0:00:37.6]} 34. Rd5 {[%clk 0:00:42.1]} 34... Kc7
{[%clk 0:00:37.2]} 35. Rxe5 {[%clk 0:00:39.5]} 35... Nxe5 {[%clk 0:00:38.1]} 36.
Kd4 {[%clk 0:00:39]} 36... Bf7 {[%clk 0:00:36.9]} 37. Rc1 {[%clk 0:00:33.2]}
37... Kd7 {[%clk 0:00:30.6]} 38. a3 {[%clk 0:00:33.5]} 38... Nc6+ {[%clk
0:00:26]} 39. Ke3 {[%clk 0:00:33.4]} 39... Ne5 {[%clk 0:00:26.4]} 40. Bf1 {[%clk
0:00:32.7]} 40... Kc6 {[%clk 0:00:25.1]} 41. Be2 {[%clk 0:00:31.2]} 41... a5
{[%clk 0:00:24.3]} 42. Kd4 {[%clk 0:00:31.4]} 42... Kd7 {[%clk 0:00:22]} 43. c5
{[%clk 0:00:24.4]} 43... Nc6+ {[%clk 0:00:18.8]} 44. Ke3 {[%clk 0:00:24.1]}
44... dxc5 {[%clk 0:00:11.7]} 45. bxc5 {[%clk 0:00:23.6]} 45... Kc7 {[%clk
0:00:10.3]} 46. cxb6+ {[%clk 0:00:20.5]} 46... Kxb6 {[%clk 0:00:11.2]} 47. Rb1+
{[%clk 0:00:20.5]} 47... Kc7 {[%clk 0:00:11.3]} 48. Rb5 {[%clk 0:00:21.1]} 48...
Kd6 {[%clk 0:00:10]} 49. Rxg5 {[%clk 0:00:21.1]} 49... g6 {[%clk 0:00:10.7]} 50.
Rb5 {[%clk 0:00:18]} 50... Be6 {[%clk 0:00:09.5]} 51. Rb7 {[%clk 0:00:10.7]}
51... Ne5 {[%clk 0:00:07.9]} 52. Rh7 {[%clk 0:00:10.4]} 52... g5 {[%clk
0:00:07.5]} 53. Rg7 {[%clk 0:00:10.6]} 53... Nf7 {[%clk 0:00:07.7]} 54. Kd4
{[%clk 0:00:11.2]} 54... Ba2 {[%clk 0:00:06.8]} 55. Bc4 {[%clk 0:00:08.7]} 55...
Bxc4 {[%clk 0:00:06.3]} 56. Kxc4 {[%clk 0:00:09.6]} 56... Ne5+ {[%clk 0:00:07]}
57. Kd4 {[%clk 0:00:09.7]} 57... Ke6 {[%clk 0:00:07.7]} 58. Rb7 {[%clk
0:00:07.9]} 58... Nf3+ {[%clk 0:00:06.5]} 59. Ke3 {[%clk 0:00:08.4]} 59... Ng1
{[%clk 0:00:07.1]} 60. Rb6+ {[%clk 0:00:05.2]} 60... Ke7 {[%clk 0:00:07]} 61.
Rb5 {[%clk 0:00:05.7]} 61... Nxh3 {[%clk 0:00:07.6]} 62. Rxa5 {[%clk 0:00:06.4]}
62... Kf6 {[%clk 0:00:07.5]} 63. Rf5+ {[%clk 0:00:07]} 63... Kg6 {[%clk
0:00:07.8]} 64. e5 {[%clk 0:00:07.3]} 64... Nf4 {[%clk 0:00:07.8]} 65. Rxf4
{[%clk 0:00:06.1]} 65... gxf4+ {[%clk 0:00:08.7]} 66. Kxf4 {[%clk 0:00:07]}
66... Kf7 {[%clk 0:00:09.1]} 67. g5 {[%clk 0:00:06.7]} 67... Ke6 {[%clk
0:00:09.8]} 68. g6 {[%clk 0:00:07.1]} 1-0